[Event "44th Chess Olympiad Open 2022"]
[Site "Chennai"]
[Date "2022.08.01"]
[Round "4.4"]
[White "Lupulescu, Constantin"]
[Black "Wojtaszek, Radoslaw"]
[Result "1/2-1/2"]
[WhiteElo "2628"]
[BlackElo "2708"]
[Annotator "TA"]
[PlyCount "60"]
[EventDate "2022.??.??"]
[TimeControl "60"]

{[%evp 19,60,5,12,19,9,14,19,14,39,27,9,18,5,11,8,5,12,10,8,4,6,4,4,4,9,15,18,
0,0,0,0,0,0,0,0,0,0,0,0,0,0,0,0]} 1. d4 {[%emt 0:00:03]} Nf6 {[%emt 0:00:04]}
2. c4 {[%emt 0:00:03]} e6 {[%emt 0:00:07]} 3. Nc3 {[%emt 0:00:05]} Bb4 {
[%emt 0:00:07]} 4. e3 {[%emt 0:00:03]} O-O {[%emt 0:00:31]} 5. Bd3 {[%emt 0:00:
00]} c5 {[%emt 0:00:14]} 6. Nge2 {[%emt 0:00:17]} d5 {[%emt 0:00:28]} 7. cxd5 {
[%emt 0:00:47]} cxd4 {[%emt 0:00:09]} 8. exd4 {[%emt 0:00:07]} Nxd5 {[%emt 0:
00:00]} 9. O-O {[%emt 0:00:29]} Nc6 {[%emt 0:00:21]} 10. a3 {[%emt 0:00:46]}
Bd6 $1 {[%emt 0:00:45] The main line 10...Bd6 scores better than 10...Be7.} 11.
Re1 {[%emt 0:00:59] E48: Nimzo-Indian: Rubinstein: 5 Bd3 d5 including 6 Ne2,
but excluding 6 a3.} Qh4 {[%emt 0:02:28]} 12. g3 {[%emt 0:02:12]} Qh5 {[%emt 0:
00:00]} 13. Nxd5 {[%emt 0:08:28]} exd5 {[%emt 0:00:15]} 14. Bf4 {[%emt 0:00:26]
} Rd8 {[%emt 0:00:31] [#]} 15. Bxd6 $146 {[%emt 0:30:26] The position is equal.
} ({Predecessor:} 15. Qd2 Bf8 16. Be3 Bd6 17. Bg5 Rf8 18. Bf4 Be7 19. b4 a6 20.
Be3 Bd6 21. Bf4 {½-½ (66) Sarana,A (2675)-Keymer,V (2667) Chess.com INT 2022}
) 15... Rxd6 {[%emt 0:00:08]} 16. Nf4 {[%emt 0:00:19][%cal Re1e8] [#]} Qxd1 {
[%emt 0:00:11]} 17. Raxd1 {[%emt 0:00:07][%cal Re1e8]} Bd7 {[%emt 0:00:21]
Against Re8+} 18. h4 {[%emt 0:07:39]} h6 {[%emt 0:01:23]} 19. Bf1 {[%emt 0:00:
00]} g5 {[%emt 0:03:10]} 20. Ng2 {[%emt 0:00:36]} Bg4 {[%emt 0:03:01]} 21. Be2
{[%emt 0:02:27]} Bxe2 {[%emt 0:01:42]} 22. Rxe2 {[%emt 0:00:03]} Kf8 {[%emt 0:
00:00]} 23. Kf1 {[%emt 0:03:11]} Re8 {[%emt 0:06:17]} 24. Rxe8+ {[%emt 0:03:13]
} Kxe8 {[%emt 0:00:05]} 25. hxg5 {[%emt 0:02:29]} hxg5 $11 {[%emt 0:00:04]
KRN-KRN} 26. Ne3 {[%emt 0:00:03]} Ne7 {[%emt 0:01:56]} 27. Ke2 {[%emt 0:00:14]}
Rb6 {[%emt 0:00:12]} 28. Rd2 {[%emt 0:01:28]} Kd7 {[%emt 0:00:17]} 29. Nd1 {
[%emt 0:03:58]} Re6+ {[%emt 0:01:43]} 30. Kd3 {[%emt 0:00:54]} Re1 {[%emt 0:00:
00] A balanced but interesting game. Weighted Error Value: White=0.01 
(flawless) /Black=0.01 (flawless)} 1/2-1/2

[Event "44th Chess Olympiad Open 2022"]
[Site "Chennai"]
[Date "2022.08.01"]
[Round "4.4"]
[White "Gavrilescu, David"]
[Black "Moranda, Wojciech"]
[Result "1/2-1/2"]
[WhiteElo "2525"]
[BlackElo "2636"]
[Annotator "TA"]
[PlyCount "60"]
[EventDate "2022.??.??"]
[TimeControl "60"]

{[%evp 10,60,25,27,30,22,26,25,23,18,25,19,20,18,27,17,16,24,20,15,21,16,19,12,
17,13,20,4,0,0,6,0,10,15,18,10,11,11,10,14,13,0,0,0,0,0,0,0,0,0,0,0,0]} 1. e4 {
[%emt 0:00:10]} c6 {[%emt 0:00:10]} 2. Nf3 {[%emt 0:00:18]} d5 {[%emt 0:00:08]}
3. Nc3 {[%emt 0:00:49]} dxe4 {[%emt 0:00:13]} 4. Nxe4 {[%emt 0:00:09]} Nf6 {
[%emt 0:00:07]} 5. Qe2 {[%emt 0:01:07]} Nxe4 {[%emt 0:00:09]} 6. Qxe4 {[%emt 0:
00:00]} Nd7 {[%emt 0:00:09] B11: Caro-Kann: Two Knights Variation.} 7. d4 {
[%emt 0:01:11]} Nf6 {[%emt 0:00:12]} 8. Qf4 {[%emt 0:00:23]} Nd5 {[%emt 0:00:
00] White has an edge.} 9. Qd2 {[%emt 0:00:50]} Bf5 {[%emt 0:00:10][%cal Ye7e5]
} 10. Bd3 {[%emt 0:00:12]} Bxd3 {[%emt 0:00:13]} 11. Qxd3 {[%emt 0:00:05]} e6 {
[%emt 0:00:12]} 12. O-O {[%emt 0:00:06]} Be7 {[%emt 0:00:09]} 13. c4 {[%emt 0:
00:00]} Nf6 {[%emt 0:04:58]} 14. Bf4 {[%emt 0:03:03] The position is equal.}
O-O {[%emt 0:00:01]} 15. Rad1 {[%emt 0:01:35]} Qb6 {[%emt 0:09:54]} 16. Qe2 {
[%emt 0:05:55]} Rad8 {[%emt 0:05:33] [#]} 17. Rfe1 $146 {[%emt 0:08:08]} ({
Predecessor:} 17. Rd3 Qa6 18. b3 Rfe8 19. Rfd1 b5 20. Rc3 bxc4 21. Qxc4 Qxa2
22. Rc2 Qa3 23. Bc1 Qb4 24. Qxb4 Bxb4 25. Rxc6 {0-1 (74) Piliczewski,B (1988)
-Stanach,F (2038) Jastrzebia Gora 2019}) 17... Rfe8 {[%emt 0:03:59]} 18. Ne5 {
[%emt 0:27:38]} c5 {[%emt 0:21:59]} 19. dxc5 {[%emt 0:00:00]} Bxc5 {[%emt 0:00:
00][%cal Yf6e4]} 20. Bg5 {[%emt 0:00:00] [#] And now Bxf6 would win.} Be7 {
[%emt 0:15:35]} 21. b3 {[%emt 0:00:00]} Qc7 {[%emt 0:03:01]} 22. h3 {[%emt 0:
00:00]} Rxd1 {[%emt 0:04:35]} 23. Rxd1 {[%emt 0:00:00]} Rd8 {[%emt 0:00:23]}
24. Rxd8+ {[%emt 0:07:30]} Qxd8 {[%emt 0:00:26]} 25. Ng4 {[%emt 0:00:55]} Nxg4
{[%emt 0:04:34]} 26. Bxe7 {[%emt 0:00:10]} Qxe7 {[%emt 0:00:12]} 27. Qxg4 {
[%emt 0:00:05]} g6 {[%emt 0:01:48]} 28. Qd4 {[%emt 0:02:00]} b6 {[%emt 0:01:03]
} 29. g3 {[%emt 0:00:15]} Qa3 {[%emt 0:01:54]} 30. Qd8+ {[%emt 0:00:09]} Kg7 {
[%emt 0:00:06] An even fight not without its subleties. Weighted Error Value:
White=0.03 (flawless) /Black=0.01 (flawless)} 1/2-1/2

[Event "44th Chess Olympiad Open 2022"]
[Site "Chennai"]
[Date "2022.08.01"]
[Round "4.5"]
[White "Mamedov, Rauf"]
[Black "Can, Emre"]
[Result "1/2-1/2"]
[WhiteElo "2656"]
[BlackElo "2606"]
[Annotator "TA"]
[PlyCount "64"]
[EventDate "2022.??.??"]
[TimeControl "60"]

{[%evp 11,64,0,11,-5,0,0,15,19,21,12,9,8,6,0,0,0,0,0,-10,-4,20,0,0,0,0,0,0,-27,
0,0,0,-24,0,0,0,0,0,-5,0,0,0,0,0,0,0,-5,0,0,0,0,0,0,0,0,0]} 1. Nf3 {[%emt 0:00:
00]} d5 {[%emt 0:00:36]} 2. g3 {[%emt 0:00:03]} g6 {[%emt 0:00:36]} 3. Bg2 {
[%emt 0:00:04]} Bg7 {[%emt 0:00:32]} 4. d4 {[%emt 0:00:03]} Nf6 {[%emt 0:01:15]
} 5. c4 {[%emt 0:00:28]} c6 {[%emt 0:00:09]} 6. O-O {[%emt 0:00:04]} O-O {
[%emt 0:00:34]} 7. a4 {[%emt 0:00:02] D78: Fianchetto Grünfeld: 6 0-0 c6.} Na6
{[%emt 0:07:54]} 8. cxd5 {[%emt 0:05:40]} cxd5 {[%emt 0:00:29]} 9. Nc3 {
[%emt 0:00:24]} Nb4 {[%emt 0:03:53] [#]} 10. a5 $146 {[%emt 0:03:14]} ({
Predecessor:} 10. Qb3 a5 11. Rd1 b6 12. Na2 Nxa2 13. Qxa2 Ba6 14. Bf1 Rc8 15.
Qb3 Bc4 16. Qa3 {0-1 (47) Bulatova,K (2009)-Tokarev,I (2323) Kazan 2017}) 10...
Nc6 {[%emt 0:00:16]} 11. Ne5 {[%emt 0:15:55]} e6 {[%emt 0:14:01]} 12. Nxc6 {
[%emt 0:12:10]} bxc6 {[%emt 0:00:02]} 13. Qa4 {[%emt 0:00:16]} Qd7 {[%emt 0:00:
00]} 14. a6 {[%emt 0:13:52]} Rb8 {[%emt 0:02:03]} 15. Qc2 {[%emt 0:01:59]} Qd8
{[%emt 0:02:05]} 16. Na4 {[%emt 0:08:05]} Bxa6 {[%emt 0:04:16]} 17. Nc5 {
[%emt 0:00:35]} Bb5 {[%emt 0:00:27]} 18. Rxa7 {[%emt 0:01:46]} Ra8 {[%emt 0:00:
00]} 19. Rb7 {[%emt 0:05:03]} Rb8 {[%emt 0:02:10]} 20. Ra7 {[%emt 0:03:05]} Ra8
{[%emt 0:00:16]} 21. Rb7 {[%emt 0:00:07]} Rb8 {[%emt 0:00:30]} 22. Rxb8 {
[%emt 0:00:38] The position is equal.} Qxb8 {[%emt 0:00:06]} 23. Bf4 {[%emt 0:
00:00]} Qa7 {[%emt 0:00:29]} 24. Be5 {[%emt 0:06:42]} Ra8 {[%emt 0:04:18]} 25.
Rc1 {[%emt 0:00:14]} Nd7 {[%emt 0:02:12]} 26. Nxd7 {[%emt 0:00:19]} Qxd7 {
[%emt 0:00:07]} 27. Bxg7 {[%emt 0:00:14]} Kxg7 {[%emt 0:00:10]} 28. e3 {
[%emt 0:00:22]} Qd6 {[%emt 0:03:40]} 29. Bf1 {[%emt 0:00:25]} Bxf1 {[%emt 0:00:
00]} 30. Kxf1 {[%emt 0:00:14]} Rb8 {[%emt 0:00:15]} 31. Qxc6 {[%emt 0:00:12]}
Qxc6 {[%emt 0:00:06]} 32. Rxc6 {[%emt 0:00:03]} Rxb2 {[%emt 0:00:07] An
interesting draw. Weighted Error Value: White=0.03 (flawless) /Black=0.05 
(flawless)} 1/2-1/2

[Event "44th Chess Olympiad Open 2022"]
[Site "Chennai"]
[Date "2022.08.01"]
[Round "4.5"]
[White "Durarbayli, Vasif"]
[Black "Ali Marandi, Cemil Can"]
[Result "1-0"]
[WhiteElo "2638"]
[BlackElo "2561"]
[Annotator "TA"]
[PlyCount "165"]
[EventDate "2022.??.??"]
[TimeControl "60"]

{[%evp 13,165,17,14,10,27,23,28,21,23,0,11,13,15,16,20,16,14,14,14,14,15,22,23,
14,14,14,24,0,0,0,11,11,7,7,17,9,14,19,17,0,54,46,50,48,94,87,77,14,18,14,9,13,
16,10,14,10,16,17,18,0,10,9,22,27,24,27,31,31,29,14,31,6,15,14,39,15,18,17,18,
18,15,24,59,61,52,57,62,56,109,45,50,38,123,48,70,56,74,56,92,54,59,39,57,72,
94,10,8,5,27,3,23,0,85,85,223,225,235,26,28,29,30,8,8,8,26,8,8,8,257,195,196,
157,374,372,29965,29967,29958,29963,10516,4821,3481,971,29991,29992,29992,
29993,29993,29994,29994,29995,29995,29996,29996,29997]} 1. e4 {[%emt 0:00:08]}
e5 {[%emt 0:00:09]} 2. Nf3 {[%emt 0:00:12]} Nc6 {[%emt 0:00:07]} 3. Bc4 {
[%emt 0:00:21]} Nf6 {[%emt 0:00:11]} 4. d3 {[%emt 0:00:26]} Bc5 {[%emt 0:00:08]
} 5. O-O {[%emt 0:00:33]} a6 {[%emt 0:00:29]} 6. a4 {[%emt 0:00:19]} d6 {
[%emt 0:00:33]} 7. c3 {[%emt 0:02:57]} h6 {[%emt 0:02:40]} 8. Re1 {[%emt 0:00:
00] C54: Giuoco Piano: 4 c3 Nf6, main lines with 5 d4 and 5 d3.} Ba7 {[%emt 0:
00:00]} 9. Nbd2 {[%emt 0:00:11][%cal Yb1d2,Yd2f1,Yf1e3]} O-O {[%emt 0:00:00]}
10. h3 {[%emt 0:00:09] White has an edge.} Re8 {[%emt 0:00:37]} 11. Qb3 {
[%emt 0:00:20]} Qe7 {[%emt 0:06:06]} 12. a5 {[%emt 0:00:36]} Rb8 {[%emt 0:00:
00]} 13. Nf1 {[%emt 0:00:16]} Be6 {[%emt 0:00:48]} 14. Bxe6 {[%emt 0:00:23] [#]
} Qxe6 $146 {[%emt 0:02:07]} ({Predecessor:} 14... fxe6 15. Be3 Bxe3 16. Nxe3
Qf7 17. Nc4 Nh5 18. d4 Nf4 19. g3 Nxh3+ 20. Kg2 Rf8 {0-1 (46) Biyiksiz,A (1378)
-Taspinar,Y (1938) Konya 2019}) 15. Qxe6 {[%emt 0:00:33]} Rxe6 {[%emt 0:02:30]}
16. Be3 {[%emt 0:03:10]} Rd8 {[%emt 0:05:13]} 17. Bxa7 {[%emt 0:00:55]} Nxa7 {
[%emt 0:00:04]} 18. Ne3 {[%emt 0:00:24]} Ree8 {[%emt 0:04:33]} 19. g3 {[%emt 0:
00:00]} Nc6 {[%emt 0:04:52]} 20. Kf1 {[%emt 0:02:01]} d5 {[%emt 0:07:15]} 21.
Ra4 {[%emt 0:28:19]} dxe4 {[%emt 0:01:48]} 22. dxe4 {[%emt 0:03:02]} Nd7 {
[%emt 0:14:25]} 23. Rc4 {[%emt 0:04:09] Against Nc5} Nf6 {[%emt 0:04:50]} 24.
Ra1 {[%emt 0:01:17]} Rd7 {[%emt 0:01:02]} (24... Rd6 {seems wilder.} 25. Ke2
Red8 26. Nc2 Nd7) 25. Raa4 {[%emt 0:05:08]} g6 {[%emt 0:04:08]} (25... Rd6 {
is interesting.} 26. Ke2 Red8 27. Nf5 R6d7) 26. Ke2 {[%emt 0:03:59]} Na7 {
[%emt 0:04:33]} (26... Red8 $11) 27. Nd2 {[%emt 0:06:10]} Nc8 {[%emt 0:01:17]}
28. Rcb4 {[%emt 0:01:41]} Nd6 {[%emt 0:03:01]} (28... c5 $14 29. Rb3 Kg7) 29.
Nb3 $1 $16 {[%emt 0:02:34]} Rdd8 {[%emt 0:00:01]} 30. Nc5 {[%emt 0:04:30]} ({
White should try} 30. Nd5 $16 Nxd5 31. exd5) 30... Nd7 $11 {[%emt 0:00:12]} 31.
Nxd7 {[%emt 0:00:21]} (31. Nxb7 Nxb7 32. Rxb7 Nc5 $17) 31... Rxd7 {[%emt 0:00:
00]} 32. Ra1 {[%emt 0:00:05]} Nb5 {[%emt 0:02:56]} 33. Rd1 {[%emt 0:05:16]} (
33. f3 {with more complications.} h5 34. g4 hxg4 35. hxg4 Kg7 36. Rd1) 33...
Rxd1 {[%emt 0:00:16]} 34. Kxd1 {[%emt 0:00:05] Endgame KRN-KRN} Kg7 {[%emt 0:
04:43]} 35. Ke2 {[%emt 0:01:47]} h5 {[%emt 0:01:13]} 36. Rc4 {[%emt 0:00:00]}
c6 {[%emt 0:03:27]} 37. Rb4 {[%emt 0:04:44]} Rd8 {[%emt 0:04:08]} 38. Nc4 {
[%emt 0:01:52]} Kf6 {[%emt 0:01:15]} 39. Nd2 {[%emt 0:02:06]} Ke6 {[%emt 0:00:
00][%cal Yh5h4]} 40. Nb3 {[%emt 0:01:25]} Kd6 {[%emt 0:03:01]} 41. Rc4 {
[%emt 0:02:24]} Kc7 {[%emt 0:29:13][%cal Yh5h4]} 42. Nc5 {[%emt 0:02:07]} Nd6 {
[%emt 0:06:32]} 43. Rb4 {[%emt 0:30:20]} Rh8 {[%emt 0:07:41]} 44. f4 {[%emt 0:
00:00]} Re8 {[%emt 0:01:40]} 45. Kf3 {[%emt 0:05:18]} f5 {[%emt 0:00:00]} 46.
h4 {[%emt 0:00:00]} Re7 {[%emt 0:00:00]} 47. Ra4 {[%emt 0:02:07]} Re8 {[%emt 0:
00:00]} 48. exf5 {[%emt 0:03:31]} gxf5 {[%emt 0:00:00]} 49. fxe5 {[%emt 0:00:
00]} Rxe5 {[%emt 0:00:00]} 50. Nd3 {[%emt 0:05:49]} Rd5 {[%emt 0:00:00]} (50...
Rb5 $14) 51. Ke3 {[%emt 0:00:00]} (51. Nf4 $16 Rd1 52. Nxh5) 51... Ne4 $14 {
[%emt 0:00:00][%cal Yd5d3] Strongly threatening ...Rxd3+!} 52. Nf4 {[%emt 0:00:
00][%csl Yd5,Yh5]} Re5 {[%emt 0:00:00]} (52... Rb5 $14) 53. Kf3 {[%emt 0:00:00]
} (53. Nxh5 $16 {Hoping for Kf4.} Nc5+ 54. Kf4 Nd3+ 55. Kf3) 53... Nf6 {
[%emt 0:00:00]} 54. Ra1 {[%emt 0:00:00]} Re8 {[%emt 0:00:00]} 55. Rd1 {[%emt 0:
00:00]} Re5 {[%emt 0:00:00]} 56. b4 {[%emt 0:00:00]} Re8 {[%emt 0:00:00]} 57.
Rd3 {[%emt 0:00:00]} Ng4 {[%emt 0:00:00] Against Re3} 58. Kg2 {[%emt 0:00:00]}
Nf6 {[%emt 0:00:00]} 59. Kf1 {[%emt 0:00:00] Prevents Re1+.} (59. c4 $16) 59...
Re4 $11 {[%emt 0:00:00]} 60. Rf3 {[%emt 0:00:00]} Kd6 {[%emt 0:01:20]} 61. Kg2
{[%emt 0:00:00]} Re8 {[%emt 0:04:14]} 62. Rd3+ {[%emt 0:00:00]} ({White should
play} 62. Kh3 $11) 62... Kc7 $16 {[%emt 0:00:08]} 63. c4 {[%emt 0:02:34][%cal
Yc3c4,Yc4c5]} Re4 {[%emt 0:02:17]} (63... b5 $16) 64. c5 $1 $18 {[%emt 0:00:00]
} ({Stronger than} 64. Rc3 Kd6 $11) 64... Kb8 {[%emt 0:00:24]} ({Not} 64...
Rxb4 65. Ne6+ Kb8 66. Rd8+ Ka7 67. Nc7) 65. Rd6 $2 {[%emt 0:00:00]} ({White
must play} 65. Rd8+ $1 $18 Kc7 66. Rf8) 65... Ng4 $11 {[%emt 0:00:14]} 66. Nxh5
{[%emt 0:00:00] And now Ng7 would win.} Rxb4 {[%emt 0:00:18]} 67. Nf6 {[%emt 0:
00:00]} Rb2+ {[%emt 0:00:19]} 68. Kf1 {[%emt 0:00:00] Nxg4 is the strong
threat.} Rb1+ {[%emt 0:00:31]} 69. Ke2 {[%emt 0:00:00]} Rb2+ {[%emt 0:00:01]}
70. Ke1 {[%emt 0:00:00] aiming for Nd7+.} Rb1+ $2 {[%emt 0:00:52]} (70... Rb5
$11) 71. Kd2 $18 {[%emt 0:00:00] Black must now prevent Nxg4.} Rb2+ {[%emt 0:
00:14]} 72. Kc3 {[%emt 0:00:00]} Rg2 $2 {[%emt 0:00:12]} (72... Rb5 $16) 73.
Nd7+ $1 {[%emt 0:00:20]} Ka7 $2 {[%emt 0:00:00] [#]} (73... Kc7 $18 74. Nb6 (
74. Rd3 Nf2 $17) 74... Ne5) 74. Nb6 $1 {[%emt 0:00:01]} Rxg3+ {[%emt 0:00:26]}
75. Kb2 {[%emt 0:00:36]} Rg2+ {[%emt 0:00:00]} 76. Kb3 {[%emt 0:00:28] Rd8
would kill now.} Rg3+ {[%emt 0:00:37]} 77. Ka4 {[%emt 0:00:26] White wants to
mate with Rd8.} Ne5 {[%emt 0:00:48] [#]} 78. Rd8 $1 {[%emt 0:00:15][%csl Gb6]
[%cal Rd8a8] White mates.} Rg4+ {[%emt 0:00:04]} 79. Kb3 {[%emt 0:00:14][%csl
Gb6][%cal Rd8a8]} Rg3+ {[%emt 0:00:09]} 80. Kc2 {[%emt 0:00:07][%csl Gb6][%cal
Rd8a8]} Rg2+ {[%emt 0:00:05]} 81. Kd1 {[%emt 0:00:00][%csl Gb6][%cal Rd8a8]}
Rg1+ {[%emt 0:00:09]} 82. Ke2 {[%emt 0:00:10][%csl Gb6][%cal Rd8a8]} Rg2+ {
[%emt 0:00:02]} 83. Kf1 {[%emt 0:00:08] Weighted Error Value: White=0.11 (very
precise) /Black=0.12 (very precise)} 1-0

[Event "44th Chess Olympiad Open 2022"]
[Site "Chennai"]
[Date "2022.08.01"]
[Round "4.5"]
[White "Yilmaz, Mustafa"]
[Black "Mamedyarov, Shakhriyar"]
[Result "1/2-1/2"]
[WhiteElo "2634"]
[BlackElo "2759"]
[Annotator "TA"]
[PlyCount "61"]
[EventDate "2022.??.??"]
[TimeControl "60"]

{[%evp 12,61,45,33,48,28,29,28,29,23,15,12,54,15,8,0,0,-8,-14,-22,31,29,34,32,
33,27,36,33,21,21,43,45,41,26,26,26,22,24,24,16,24,24,24,16,18,-7,-7,-7,-7,-7,
-7,-7]} 1. d4 {[%emt 0:00:04]} Nf6 {[%emt 0:00:09]} 2. c4 {[%emt 0:00:06]} e6 {
[%emt 0:00:22]} 3. Nf3 {[%emt 0:00:06]} Bb4+ {[%emt 0:00:15]} 4. Nbd2 {[%emt 0:
00:00]} d5 {[%emt 0:00:15]} 5. Qa4+ {[%emt 0:00:25]} Nc6 {[%emt 0:00:08]} 6. a3
{[%emt 0:04:04]} Be7 {[%emt 0:00:13]} 7. e3 {[%emt 0:03:46]} a5 {[%emt 0:01:14]
[%cal Ya7a5,Ya5a4] E11: Bogo-Indian.} 8. Bd3 {[%emt 0:05:04]} (8. b4 $5) 8...
O-O {[%emt 0:03:22]} 9. O-O {[%emt 0:05:55]} Bd7 {[%emt 0:12:48][%cal Yc6d4]
White has an edge.} 10. Qc2 {[%emt 0:01:19]} a4 {[%emt 0:00:09]} 11. Ne5 {
[%emt 0:12:39]} Na5 {[%emt 0:03:27] [#]} 12. Nxd7 $146 {[%emt 0:08:24]} ({
Predecessor:} 12. c5 Be8 13. f4 g6 14. Ndf3 b6 15. c6 Ne4 16. Bb5 f6 17. Nd7
Bxd7 18. cxd7 {1-0 (29) Jacobson,B (2530)-Shkapenko,P (2424) Chess.com INT 2021
}) 12... Qxd7 {[%emt 0:00:08]} 13. cxd5 {[%emt 0:03:09]} exd5 {[%emt 0:04:37]}
14. b4 {[%emt 0:00:22]} axb3 $1 {[%emt 0:00:22]} 15. Nxb3 {[%emt 0:00:03]} Bd6
{[%emt 0:11:31]} (15... Nxb3 $11 16. Qxb3 b6) 16. Nxa5 $14 {[%emt 0:05:31]}
Rxa5 {[%emt 0:00:09]} 17. Bd2 {[%emt 0:00:55]} Rxa3 {[%emt 0:11:32]} 18. Rxa3 {
[%emt 0:00:07]} Bxa3 {[%emt 0:00:02]} 19. Qb3 {[%emt 0:00:15][%csl Ya3,Yb7]}
Bd6 {[%emt 0:00:09]} 20. Qxb7 {[%emt 0:00:25]} c5 {[%emt 0:00:13]} 21. Qxd7 {
[%emt 0:01:48]} Nxd7 {[%emt 0:00:02]} 22. Bf5 {[%emt 0:05:03]} Nf6 {[%emt 0:00:
00]} 23. dxc5 {[%emt 0:00:48]} Bxc5 {[%emt 0:00:01]} 24. Rc1 {[%emt 0:01:00]}
Ba3 {[%emt 0:00:07]} 25. Rc8 {[%emt 0:00:27]} g6 {[%emt 0:00:52]} 26. Rxf8+ {
[%emt 0:00:09]} Kxf8 {[%emt 0:00:09]} 27. Bd3 {[%emt 0:00:05]} Ne4 {[%emt 0:00:
00] The position is equal.} 28. Bxe4 {[%emt 0:00:09]} dxe4 {[%emt 0:00:02]} 29.
Kf1 {[%emt 0:00:09]} f5 {[%emt 0:00:07]} 30. Ke2 {[%emt 0:00:04]} Kf7 {[%emt 0:
00:00]} 31. Bc3 {[%emt 0:00:06] Weighted Error Value: White=0.07 (flawless) /
Black=0.10 (very precise)} 1/2-1/2

[Event "44th Chess Olympiad Open 2022"]
[Site "Chennai"]
[Date "2022.08.01"]
[Round "4.5"]
[White "Sanal, Vahap"]
[Black "Guseinov, Gadir"]
[Result "1-0"]
[WhiteElo "2574"]
[BlackElo "2668"]
[Annotator "TA"]
[PlyCount "97"]
[EventDate "2022.??.??"]
[TimeControl "60"]

{[%evp 9,97,23,21,15,19,16,10,0,15,15,22,15,37,34,39,0,14,16,14,0,18,25,24,-7,
0,0,0,0,0,0,0,16,49,42,44,36,46,43,33,41,47,46,35,37,215,215,215,215,270,260,
310,291,273,255,255,255,433,410,375,255,725,718,938,901,2747,2595,1884,1968,
1759,1347,1853,1846,2999,5352,3660,3446,2189,1875,1201,2101,12825,12824,12825,
12827,12828,12828,11801,7967,2015,1442]} 1. d4 {[%emt 0:00:39]} d5 {[%emt 0:00:
00]} 2. c4 {[%emt 0:02:41]} c6 {[%emt 0:00:05]} 3. cxd5 {[%emt 0:01:21]} cxd5 {
[%emt 0:00:06]} 4. Bf4 {[%emt 0:00:11]} Nc6 {[%emt 0:01:10]} 5. e3 {[%emt 0:00:
00]} Nf6 {[%emt 0:00:36]} 6. Bd3 {[%emt 0:00:37] D10: Slav Defence: 3 cxd5 
(without early Nf3) and 3 Nc3.} Bg4 {[%emt 0:03:38][%cal Yc8g4,Yg4h5,Yh5g6]} 7.
f3 $1 {[%emt 0:00:30] is now more promising than 7.Ne2.} Bh5 {[%emt 0:00:40]}
8. Nc3 {[%emt 0:05:37] The position is equal.} e6 {[%emt 0:00:38]} 9. Qb3 {
[%emt 0:04:37]} Qd7 {[%emt 0:00:40]} 10. Nge2 {[%emt 0:00:00] [#]} Bg6 $146 {
[%emt 0:00:34]} ({Predecessor:} 10... Rc8 11. Kf2 Bg6 12. Bb5 a6 13. Bxc6 Rxc6
14. Rhc1 Rc4 15. Nd1 Rb4 16. Qc3 Rc4 {½-½ (38) Perry,W (2179)-Piccoli,F 
(2102) ICCF email 2017}) 11. Bb5 {[%emt 0:01:52]} Be7 {[%emt 0:12:00]} 12. g4 {
[%emt 0:04:48][%cal Yg2g4,Yg4g5]} a6 {[%emt 0:00:00]} 13. Bxc6 {[%emt 0:00:20]}
Qxc6 {[%emt 0:00:11]} 14. h4 {[%emt 0:02:10]} h5 {[%emt 0:25:07]} 15. g5 {
[%emt 0:01:22]} Nd7 {[%emt 0:00:02]} 16. Kf2 {[%emt 0:14:33]} Qb6 {[%emt 0:06:
42]} (16... Nb6 {is interesting.} 17. e4 Nc4 18. exd5 exd5 19. Bg3 O-O) 17.
Rhc1 {[%emt 0:09:23]} Qxb3 {[%emt 0:03:41]} 18. axb3 {[%emt 0:00:05]} O-O {
[%emt 0:00:33]} 19. Bg3 {[%emt 0:01:41]} Rfc8 {[%emt 0:11:51]} 20. Nf4 {
[%emt 0:02:41]} Kh7 {[%emt 0:00:04]} 21. Nxg6 {[%emt 0:04:47]} Kxg6 {[%emt 0:
00:31]} 22. Ne2 {[%emt 0:00:21]} Kh7 {[%emt 0:00:00]} 23. Nf4 {[%emt 0:00:36]}
g6 {[%emt 0:00:42]} 24. Nd3 {[%emt 0:00:09]} Kg8 {[%emt 0:00:37]} 25. b4 {
[%emt 0:06:20][%cal Yb4b5,Yb3b4,Yb4c5]} Nb6 {[%emt 0:08:35]} 26. Nc5 {[%emt 0:
09:47]} Bxc5 $2 {[%emt 0:06:49] [#] A mistake that costs the game.} (26... Nc4
$14) 27. bxc5 $18 {[%emt 0:00:36]} ({Less strong is} 27. dxc5 Nd7 $14) 27...
Nd7 {[%emt 0:00:00]} 28. Rc3 {[%emt 0:02:19]} Rc6 {[%emt 0:01:59]} 29. b4 {
[%emt 0:05:34][%cal Yb2b4,Yb4b5,Yb5a6,Ya6a7]} Rac8 {[%emt 0:00:44]} 30. Rb3 {
[%emt 0:00:00]} e5 {[%emt 0:07:47]} 31. Bxe5 {[%emt 0:11:30]} ({But not} 31.
dxe5 $6 b6 $16) 31... Nxe5 {[%emt 0:00:00]} 32. dxe5 {[%emt 0:00:02] Endgame
KRR-KRR} b6 $2 {[%emt 0:00:00]} (32... Kf8 {might work better.} 33. Rd3 Rd8)
33. Rxa6 {[%emt 0:01:03]} bxc5 {[%emt 0:00:00]} 34. b5 {[%emt 0:02:05]} Rxa6 {
[%emt 0:00:00]} (34... R6c7 35. b6 c4) 35. bxa6 {[%emt 0:00:04] [#] a7 would
kill now. KR-KR. White is clearly winning.} c4 {[%emt 0:00:00]} 36. Rc3 {
[%emt 0:01:57] Strongly threatening a7.} Kf8 {[%emt 0:02:56]} 37. a7 {[%emt 0:
00:18]} Ke7 {[%emt 0:00:00]} 38. Ra3 {[%emt 0:00:40]} Ra8 {[%emt 0:00:02]} 39.
Ke2 {[%emt 0:01:29]} Kd7 {[%emt 0:00:54]} 40. Kd2 {[%emt 0:00:13]} Kc6 {
[%emt 0:00:35]} 41. Kc3 {[%emt 0:30:41]} (41. Ra1 $142 Kb5 42. Ra2) 41... Kb5 {
[%emt 0:06:39]} 42. Ra2 {[%emt 0:00:00]} Kc5 {[%emt 0:00:11]} 43. Ra1 {[%emt 0:
00:00]} Kb5 {[%emt 0:00:00]} 44. Kd4 {[%emt 0:00:00]} Kc6 {[%emt 0:00:17]} 45.
e4 {[%emt 0:00:00]} dxe4 {[%emt 0:00:03]} 46. fxe4 {[%emt 0:00:00]} Kb5 {
[%emt 0:00:07]} 47. Kc3 {[%emt 0:00:00]} Kc5 {[%emt 0:01:02]} 48. Ra4 {[%emt 0:
00:00]} Kb5 {[%emt 0:00:00]} 49. Rb4+ {[%emt 0:00:00] Weighted Error Value:
White=0.10 (very precise) / Black=0.32} 1-0